fUST/lending_fUST_20260206
["ID","MTS","AMOUNT","RATE_DAILY","PERIOD"]
[404615688,1770330640232,-150.070536,0.000396,2]
[404615691,1770330640241,-1076.99408314,0.0003963,3]
[404615693,1770330640256,-1076.99408314,0.00039637,3]
[404615695,1770330640265,-166.0293763,0.0003964,2]
[404615696,1770330640274,-20892.3519558,0.0003964,2]
[404615697,1770330640284,-213.287922,0.0003964,2]
[404615698,1770330640293,-1518.7811162,0.0003964,2]
[404615699,1770330640302,-8712.0243175,0.0003964,2]
[404615700,1770330640311,-800.4803327,0.0003964,2]
[404615701,1770330640321,-8405.1011968,0.0003964,2]
[404615702,1770330640330,-686.9296997,0.0003964,2]
[404615703,1770330640339,-152.0,0.00039648,14]
[404615704,1770330640348,-152.0,0.00039648,14]
[404615705,1770330640357,-152.0,0.00039648,14]
[404615706,1770330640365,-152.0,0.00039648,14]
[404615707,1770330640374,-152.0,0.00039648,14]
[404615708,1770330640383,-151.0,0.00039648,14]
[404615709,1770330640392,-151.0,0.00039648,14]
[404615710,1770330640401,-152.0,0.00039648,14]
[404615711,1770330640410,-152.0,0.00039648,14]
[404615712,1770330640419,-151.0,0.00039648,14]
[404615713,1770330640427,-151.0,0.00039648,14]
[404615714,1770330640436,-152.0,0.00039648,14]
[404615716,1770330640446,-152.0,0.00039648,14]
[404615718,1770330640455,-151.0,0.00039648,14]
[404615720,1770330640468,-151.0,0.00039648,14]
[404615722,1770330640477,-151.0,0.00039648,14]
[404615724,1770330640486,-151.0,0.00039648,14]
[404615726,1770330640496,-151.0,0.00039648,14]
[404615728,1770330640514,-217.55291771,0.00039648,14]
[404615730,1770330640523,-152.0,0.00039648,14]
[404615732,1770330640533,-152.0,0.00039648,14]
[404615734,1770330640544,-220.56991352,0.00039648,14]
[404615736,1770330640553,-166.0,0.00039648,14]
[404615738,1770330640563,-166.0,0.00039648,14]
[404615739,1770330640572,-166.0,0.00039648,14]
[404615740,1770330640581,-349.0,0.00039648,14]
[404615741,1770330640590,-166.0,0.00039648,14]
[404615742,1770330640600,-349.0,0.00039648,14]
[404615743,1770330640609,-209.17693836,0.00039648,14]
[404615744,1770330640619,-166.0,0.00039648,14]
[404615746,1770330640628,-349.0,0.00039648,14]
[404615747,1770330640637,-166.0,0.00039648,14]
[404615749,1770330640647,-164.0,0.00039648,14]
[404615750,1770330640657,-349.0,0.00039648,14]
[404615751,1770330640666,-168.0,0.00039648,14]
[404615753,1770330640675,-166.0,0.00039648,14]
[404615755,1770330640684,-271.71060174,0.00039648,14]
[404615756,1770330640693,-349.0,0.00039648,14]
[404615757,1770330640702,-168.0,0.00039648,14]
[404615758,1770330640712,-172.0,0.00039648,14]
[404615759,1770330640721,-349.0,0.00039648,14]
[404615760,1770330640730,-170.4982931,0.00039648,14]
[404615761,1770330640739,-153.0,0.00039648,14]
[404615762,1770330640748,-349.0,0.00039648,14]
[404615763,1770330640763,-153.0,0.00039648,14]
[404615764,1770330640772,-349.0,0.00039648,14]
[404615765,1770330640782,-153.0,0.00039648,14]
[404615766,1770330640791,-349.0,0.00039648,14]
[404615767,1770330640800,-349.0,0.00039648,14]
[404615768,1770330640810,-171.02008649,0.00039648,14]
[404615769,1770330640819,-349.0,0.00039648,14]
[404615770,1770330640829,-349.0,0.00039648,14]
[404615771,1770330640838,-349.0,0.00039648,14]
[404615772,1770330640848,-335.0,0.00039648,14]
[404615773,1770330640857,-349.0,0.00039648,14]
[404615774,1770330640867,-349.0,0.00039648,14]
[404615775,1770330640876,-335.0,0.00039648,14]
[404615776,1770330640885,-335.0,0.00039648,14]
[404615777,1770330640894,-349.0,0.00039648,14]
[404615778,1770330640903,-335.0,0.00039648,14]
[404615779,1770330640912,-349.0,0.00039648,14]
[404615780,1770330640922,-335.0,0.00039648,14]
[404615781,1770330640931,-349.0,0.00039648,14]
[404615782,1770330640940,-335.0,0.00039648,14]
[404615783,1770330640950,-349.0,0.00039648,14]
[404615784,1770330640959,-335.0,0.00039648,14]
[404615785,1770330640968,-349.0,0.00039648,14]
[404615786,1770330640977,-335.0,0.00039648,14]
[404615787,1770330640986,-349.0,0.00039648,14]
[404615788,1770330640996,-335.0,0.00039648,14]
[404615789,1770330641012,-349.0,0.00039648,14]
[404615790,1770330641021,-335.0,0.00039648,14]
[404615791,1770330641031,-349.0,0.00039648,14]
[404615792,1770330641040,-335.0,0.00039648,14]
[404615793,1770330641049,-349.0,0.00039648,14]
[404615794,1770330641059,-335.0,0.00039648,14]
[404615795,1770330641069,-349.0,0.00039648,14]
[404615796,1770330641078,-335.0,0.00039648,14]
[404615797,1770330641087,-349.0,0.00039648,14]
[404615798,1770330641097,-335.0,0.00039648,14]
[404615799,1770330641106,-349.0,0.00039648,14]
[404615800,1770330641116,-335.0,0.00039648,14]
[404615801,1770330641126,-349.0,0.00039648,14]
[404615802,1770330641135,-335.0,0.00039648,14]
[404615803,1770330641145,-349.0,0.00039648,14]
[404615804,1770330641154,-349.0,0.00039648,14]
[404615805,1770330641163,-335.0,0.00039648,14]
[404615806,1770330641172,-349.0,0.00039648,14]
[404615807,1770330641181,-335.0,0.00039648,14]
[404615808,1770330641190,-335.0,0.00039648,14]
[404615809,1770330641200,-349.0,0.00039648,14]
[404615810,1770330641209,-335.0,0.00039648,14]
[404615811,1770330641219,-349.0,0.00039648,14]
[404615812,1770330641228,-335.0,0.00039648,14]
[404615813,1770330641237,-349.0,0.00039648,14]
[404615814,1770330641246,-335.0,0.00039648,14]
[404615815,1770330641260,-349.0,0.00039648,14]
[404615816,1770330641269,-166.0,0.00039648,14]
[404615817,1770330641278,-335.0,0.00039648,14]
[404615818,1770330641287,-349.0,0.00039648,14]
[404615819,1770330641296,-166.0,0.00039648,14]
[404615820,1770330641307,-335.0,0.00039648,14]
[404615821,1770330641316,-349.0,0.00039648,14]
[404615822,1770330641325,-166.0,0.00039648,14]
[404615823,1770330641334,-335.0,0.00039648,14]
[404615824,1770330641344,-349.0,0.00039648,14]
[404615825,1770330641353,-166.0,0.00039648,14]
[404615826,1770330641362,-335.0,0.00039648,14]
[404615827,1770330641375,-349.0,0.00039648,14]
[404615828,1770330641384,-166.0,0.00039648,14]
[404615829,1770330641393,-335.0,0.00039648,14]
[404615830,1770330641403,-349.0,0.00039648,14]
[404615831,1770330641412,-166.0,0.00039648,14]
[404615832,1770330641422,-349.0,0.00039648,14]
[404615833,1770330641431,-335.0,0.00039648,14]
[404615834,1770330641441,-166.0,0.00039648,14]
[404615835,1770330641450,-349.0,0.00039648,14]
[404615836,1770330641460,-335.0,0.00039648,14]
[404615837,1770330641469,-166.0,0.00039648,14]
[404615838,1770330641479,-349.0,0.00039648,14]
[404615839,1770330641489,-172.0,0.00039648,14]
[404615840,1770330641499,-335.0,0.00039648,14]
[404615841,1770330641515,-349.0,0.00039648,14]
[404615842,1770330641524,-349.0,0.00039648,14]
[404615843,1770330641534,-335.0,0.00039648,14]
[404615844,1770330641544,-335.0,0.00039648,14]
[404615845,1770330641553,-349.0,0.00039648,14]
[404615846,1770330641566,-335.0,0.00039648,14]
[404615847,1770330641575,-349.0,0.00039648,14]
[404615848,1770330641585,-335.0,0.00039648,14]
[404615849,1770330641595,-165.16784305,0.00039648,14]
[404615850,1770330641605,-335.0,0.00039648,14]
[404615851,1770330641614,-335.0,0.00039648,14]
[404615852,1770330641623,-167.0,0.00039648,14]
[404615853,1770330641633,-335.0,0.00039648,14]
[404615854,1770330641642,-167.0,0.00039648,14]
[404615855,1770330641652,-167.0,0.00039648,14]
[404615856,1770330641661,-335.0,0.00039648,14]
[404615857,1770330641671,-167.0,0.00039648,14]
[404615858,1770330641680,-335.0,0.00039648,14]
[404615859,1770330641689,-166.5643055,0.00039648,14]
[404615860,1770330641699,-335.0,0.00039648,14]
[404615861,1770330641708,-335.0,0.00039648,14]
[404615862,1770330641717,-335.0,0.00039648,14]
[404615863,1770330641728,-335.0,0.00039648,14]
[404615864,1770330641737,-335.0,0.00039648,14]
[404615865,1770330641747,-428.41801734,0.00039648,14]
[404615866,1770330641761,-177.0,0.00039648,14]
[404615867,1770330641770,-177.0,0.00039648,14]
[404615868,1770330641780,-178.46763257,0.00039648,14]
[404615869,1770330641789,-352.81396788,0.00039653,2]
[404615870,1770330641799,-403.21596329,0.00039653,2]
[404615871,1770330641808,-291.70696065,0.00039653,2]
[404615872,1770330641818,-333.3793836,0.00039653,2]
[404615873,1770330641828,-321.79770867,0.00039653,2]
[404615874,1770330641837,-579.2358756,0.00039653,2]
[404615875,1770330641847,-1029.75266774,0.00039653,2]
[404615876,1770330641857,-355.42301235,0.00039656,7]
[404615877,1770330641866,-293.86412137,0.00039656,7]
[404615878,1770330641875,-181.72105901,0.00039656,7]
[404615879,1770330641885,-1076.99408314,0.0003966,3]
[404615880,1770330641895,-814.37239985,0.00039661,120]
[404615881,1770330641904,-151.0,0.00039662,14]
[404615882,1770330641913,-151.0,0.00039662,14]
[404615883,1770330641922,-151.0,0.00039662,14]
[404615884,1770330641932,-151.0,0.00039662,14]
[404615885,1770330641941,-151.0,0.00039662,14]
[404615886,1770330641950,-151.0,0.00039662,14]
[404615887,1770330641959,-151.0,0.00039662,14]
[404615888,1770330641969,-151.0,0.00039662,14]
[404615889,1770330641978,-152.0,0.00039662,14]
[404615890,1770330641987,-292.0,0.00039662,14]
[404615891,1770330641996,-152.0,0.00039662,14]
[404615892,1770330642013,-152.0,0.00039662,14]
[404615893,1770330642022,-152.0,0.00039662,14]
[404615894,1770330642031,-152.0,0.00039662,14]
[404615895,1770330642040,-240.0,0.00039662,14]
[404615896,1770330642049,-152.0,0.00039662,14]
[404615897,1770330642059,-152.0,0.00039662,14]
[404615898,1770330642068,-152.0,0.00039662,14]
[404615899,1770330642078,-152.0,0.00039662,14]
[404615900,1770330642087,-152.0,0.00039662,14]
[404615901,1770330642096,-240.0,0.00039662,14]
[404615902,1770330642105,-2000.0,0.00039662,120]
[404615903,1770330642114,-672.44631815,0.00039667,7]
[404615904,1770330642123,-373.85,0.0003967,3]
[404615905,1770330642131,-186.92,0.0003967,3]
[404615906,1770330642140,-560.79,0.0003967,3]
[404615907,1770330642148,-2153.98816628,0.0003967,3]
[404615908,1770330642157,-487.0,0.00039679,2]
[404615909,1770330642166,-487.0,0.00039679,2]
[404615910,1770330642175,-551.95,0.00039679,2]
[404615911,1770330642183,-741.26793723,0.0003968,7]
[404615912,1770330642192,-3064906.30481624,0.0003968,30]
[404615913,1770330642694,-265.74839075,0.0003968,30]
[404615914,1770330642706,-4949.67868723,0.0003968,30]
[404615915,1770330642717,-31505.5,0.0003968,30]
[404615936,1770330645903,-567.6937,0.00039273,10]
[404615939,1770330645923,-2944.9363,0.00039273,10]
[404615940,1770330645932,-37310.1897,0.0003968,30]
[404615941,1770330645944,-4552.86,0.0003968,30]
[404615942,1770330646332,-1976.40722315,0.0003968,30]
[404615943,1770330646344,-6056.1045271,0.0003968,30]
[404615952,1770330732888,500.0,0.00013273,2]
[404615957,1770330787673,591.30697883,0.00013273,2]
[404615958,1770330798684,287.47357518,0.00013273,2]
[404615959,1770330968202,408.55432392,0.00013699,2]
[404615961,1770331081011,221.45,9.99e-05,2]
[404615962,1770331081299,221.45,9.99e-05,2]
[404615964,1770331218131,-2374646.06783275,0.00039701,30]
[404615965,1770331218158,-159.34263903,0.00039701,120]
[404615966,1770331218184,-6532.64988852,0.00039701,21]
[404615967,1770331218210,-185.00517868,0.00039701,120]
[404615968,1770331218236,-275.15411032,0.00039701,120]
[404615969,1770331218267,-275.15411032,0.00039701,120]
[404615970,1770331218292,-275.15411032,0.00039701,120]
[404615971,1770331218318,-2617651.47213006,0.00039701,30]
[404615974,1770331251453,-2501790.89037421,0.00039701,30]
[404615975,1770331251487,-12176.6912462,0.00039701,30]
[404615976,1770331251518,-190.75205848,0.00039701,120]
[404615977,1770331251550,-158.34642946,0.00039701,120]
[404615978,1770331251582,-158.34642946,0.00039701,120]
[404615979,1770331251614,-201.06475275,0.00039701,120]
[404615980,1770331251650,-598.41239,0.00039701,120]
[404615981,1770331251684,-2484725.49631944,0.00039701,30]
[404615982,1770331257695,-5000000.0,0.00039701,30]
[404615983,1770331263002,1583.27920606,0.00014027,2]
[404616560,1770331310311,-1734464.74291012,0.00039701,30]
[404616561,1770331310361,-1040.14312294,0.00039701,120]
[404616564,1770331310413,-1022.61439736,0.00039701,30]
[404616565,1770331310462,-248154.97180434,0.00039701,120]
[404616568,1770331310513,-152.86315677,0.00039701,120]
[404616569,1770331310562,-229.940455,0.00039701,30]
[404616571,1770331310614,-304.72415004,0.00039701,30]
[404616573,1770331310670,-159.95770398,0.00039701,60]
[404616575,1770331310721,-1475.39893205,0.00039701,60]
[404616577,1770331310775,-1298.09845923,0.00039701,35]
[404616580,1770331310830,-3317.52520929,0.00039701,30]
[404616582,1770331310886,-162.05082949,0.00039701,120]
[404616583,1770331310942,-203.2270395,0.00039701,120]
[404616586,1770331310997,-165.47085185,0.00039701,30]
[404616587,1770331311048,-167.25602892,0.00039701,30]
[404616589,1770331311098,-824.01948186,0.00039701,120]
[404616592,1770331311151,-261.61810529,0.00039701,31]
[404616594,1770331311203,-201.94780083,0.00039701,120]
[404616595,1770331311255,-179.57944477,0.00039701,30]
[404616597,1770331311305,-162.24445234,0.00039701,30]
[404616599,1770331311357,-975.17622445,0.00039701,120]
[404616601,1770331311407,-527.24527272,0.00039701,120]
[404616606,1770331311590,-325.14967276,0.00039701,120]
[404616608,1770331311639,-213.02683704,0.00039701,120]
[404616610,1770331311684,-159.58449368,0.00039701,120]
[404616612,1770331311730,-259.56156764,0.00039701,60]
[404616614,1770331311778,-406.35272629,0.00039701,60]
[404616616,1770331311828,-1467.47669785,0.00039701,30]
[404616618,1770331311878,-913.80046438,0.00039701,30]
[404616620,1770331311926,-1000.00344061,0.00039701,120]
[404616622,1770331311980,-432.22945664,0.00039701,120]
[404616623,1770331312036,-222.94014253,0.00039701,30]
[404616626,1770331312094,-352.85885311,0.00039701,30]
[404616627,1770331312151,-6236.02717255,0.00039701,30]
[404616629,1770331312207,-215.04245467,0.00039701,30]
[404616632,1770331312265,-336.60072549,0.00039701,33]
[404616633,1770331312319,-214.88725439,0.00039701,31]
[404616635,1770331312369,-1430.475468,0.00039701,30]
[404616637,1770331312417,-3665.60152257,0.00039701,120]
[404616639,1770331312464,-20141.1322399,0.00039701,120]
[404616641,1770331312516,-542.1781165,0.00039701,120]
[404616643,1770331312567,-7966014.25486026,0.00039701,30]
[404616687,1770331354629,156.90296932,0.00014027,2]
[404616688,1770331486785,275.727,0.00030137,120]
[404616689,1770331488256,934.9014,0.00017488,120]
[404616690,1770331488661,934.9014,0.00017756,120]
[404616691,1770331488881,934.9014,0.00017845,120]
[404616692,1770331489072,934.9014,0.00018024,120]
[404616693,1770331489214,934.9014,0.00018202,120]
[404616694,1770331563011,2311.04598507,0.00014027,2]
[404616695,1770331623064,229.02465712,0.00014027,2]
[404616703,1770331829170,244.94724,0.00029,120]
[404616725,1770331832632,-332.07551782,0.00016541,2]
[404616726,1770331832645,-544.42071765,0.00016541,2]
[404616727,1770331832717,-592.36536678,0.00016541,2]
[404616728,1770331832729,-379.735,0.00016541,2]
[404616729,1770331832742,-347.875,0.00016541,2]
[404616732,1770331834850,200.0,0.00027,120]
[404616738,1770331838011,-94.19945479,0.00016541,2]
[404616739,1770331838020,-4685.46721188,0.00016608,2]
[404616740,1770331838032,-10463.45360367,0.00016608,2]
[404616741,1770331838043,-3525.90264509,0.00016608,2]
[404616742,1770331838055,-28863.15860419,0.00016608,2]
[404616743,1770331838065,-5000.0,0.00016708,2]
[404616744,1770331838075,-300.0,0.00016946,2]
[404616745,1770331838085,-300.0,0.00016946,2]
[404616746,1770331838094,-254.0,0.00016946,2]
[404616747,1770331838103,-500.0,0.00016946,2]
[404616748,1770331838114,-150.0,0.0001743,2]
[404616749,1770331838124,-495.06277922,0.0001831,2]
[404616750,1770331838135,-500.0,0.0001831,2]
[404616751,1770331838145,-500.0,0.0001831,2]
[404616752,1770331838155,-500.0,0.0001831,2]
[404616753,1770331838165,-500.0,0.0001831,2]
[404616754,1770331838174,-420.0,0.0001851,2]
[404616755,1770331838184,-500.0,0.00018595,2]
[404616756,1770331838193,-303.10001603,0.000189,2]
[404616757,1770331838203,-303.10001603,0.00019089,2]
[404616758,1770331838213,-303.10001603,0.00019278,2]
[404616759,1770331838223,-177.0,0.0001943,2]
[404616760,1770331838232,-303.10001603,0.00019467,2]
[404616761,1770331838242,-303.10001603,0.00019656,2]
[404616762,1770331838251,-454.65002405,0.00019845,4]
[404616763,1770331838261,-151.55000802,0.0002,2]
[404616764,1770331838270,-454.65002402,0.00020034,4]
[404616765,1770331838279,-204.0,0.0002143,2]
[404616766,1770331838289,-150.0,0.00021918,2]
[404616767,1770331838298,-150.38236857,0.00021918,2]
[404616768,1770331838308,-1000.0,0.000221,2]
[404616769,1770331838317,-1000.0,0.000221,2]
[404616770,1770331838327,-1000.0,0.000221,2]
[404616771,1770331838336,-1000.0,0.000221,2]
[404616772,1770331838345,-1000.0,0.000221,2]
[404616773,1770331838355,-1000.0,0.000221,2]
[404616774,1770331838365,-1000.0,0.000221,2]
[404616775,1770331838374,-1000.0,0.000221,2]
[404616776,1770331838384,-1000.0,0.000221,2]
[404616777,1770331838393,-1000.0,0.000221,2]
[404616778,1770331838402,-250.0,0.000223,2]
[404616779,1770331838412,-150.66764773,0.00022466,2]
[404616780,1770331838422,-231.0,0.0002343,2]
[404616781,1770331838431,-386.26377678,0.0002436,2]
[404616782,1770331838441,-150.0,0.00024658,2]
[404616783,1770331838452,-250.0,0.00025205,2]
[404616784,1770331838462,-307.70706617,0.00025373,2]
[404616785,1770331838471,-258.0,0.0002543,2]
[404616786,1770331838480,-350.0,0.00025753,2]
[404616787,1770331838490,-300.0,0.00026116,2]
[404616788,1770331838633,-401.48,0.00026201,2]
[404616789,1770331838644,-157.99,0.00026201,2]
[404616790,1770331838654,-157.99,0.00026201,2]
[404616791,1770331838663,-157.99,0.00026201,2]
[404616792,1770331838672,-157.99,0.00026201,2]
[404616793,1770331838682,-500.0,0.00026201,2]
[404616794,1770331838691,-401.47596613,0.00026301,2]
[404616795,1770331838702,-695.27479821,0.00027399,2]
[404616796,1770331838711,-285.0,0.0002743,2]
[404616797,1770331838721,-409.59338241,0.00029388,2]
[404616798,1770331838730,-553.87271911,0.00029425,2]
[404616799,1770331838739,-312.0,0.0002943,2]
[404616800,1770331838748,-409.59338241,0.00029685,2]
[404616801,1770331838758,-327.67470593,0.00029833,10]
[404616802,1770331838768,-1843.83488063,0.00030137,2]
[404616803,1770331838777,-160.89,0.00030137,2]
[404616804,1770331838787,-1236.04408571,0.00030438,2]
[404616805,1770331838796,-327.67470593,0.00030788,10]
[404616806,1770331838809,-339.0,0.0003143,2]
[404616807,1770331838818,-327.67470593,0.00031743,10]
[404616808,1770331838827,-200.0,0.000323,120]
[404616809,1770331838836,-170.598,0.00032555,32]
[404616810,1770331838847,-327.67470593,0.00032698,10]
[404616811,1770331838857,-171.61864473,0.000332,117]
[404616812,1770331838867,-366.0,0.0003343,120]
[404616813,1770331838878,-1931.31888391,0.00033478,2]
[404616814,1770331838888,-984.66261175,0.00033478,2]
[404616815,1770331838897,-327.67470593,0.00033652,27]
[404616816,1770331838906,-327.67470593,0.00034607,30]
[404616817,1770331838915,-205.79390121,0.00035,2]
[404616818,1770331838924,-9868.08,0.00035156,10]
[404616819,1770331838934,-6412.54,0.00035156,10]
[404616820,1770331838943,-25356.5207168,0.00035166,2]
[404616821,1770331838954,-10012.11,0.00035166,10]
[404616822,1770331838964,-294.5448871,0.00035176,2]
[404616823,1770331838974,-18849.3604657,0.00035176,2]
[404616824,1770331838984,-160.05,0.000353,7]
[404616825,1770331838993,-393.0,0.0003543,120]
[404616826,1770331839003,-327.67470593,0.00035562,30]
[404616827,1770331839012,-1315.750699,0.00035589,60]
[404616828,1770331839022,-4154.789849,0.0003572,60]
[404616829,1770331839032,-151.0,0.00036,13]
[404616830,1770331839041,-285.47189443,0.0003622,5]
[404616831,1770331839051,-1450.163194,0.0003623,60]
[404616832,1770331839061,-3930.802683,0.00036232,60]
[404616833,1770331839071,-480.31,0.000363,7]
[404616834,1770331839081,-168.0,0.00036358,2]
[404616835,1770331839090,-1175.381554,0.00036366,60]
[404616836,1770331839099,-151.0,0.000364,16]
[404616837,1770331839109,-434.16,0.00036507,3]
[404616838,1770331839118,-217.08,0.00036507,3]
[404616839,1770331839128,-151.0,0.000368,18]
[404616840,1770331839138,-168.0,0.00036813,7]
[404616841,1770331839147,-3868.0,0.00036843,7]
[404616842,1770331839157,-168.0,0.00036941,7]
[404616843,1770331839166,-1000.0,0.00036955,2]
[404616844,1770331839175,-250.0,0.00036955,2]
[404616845,1770331839185,-1000.0,0.00036955,2]
[404616846,1770331839195,-250.0,0.00036955,2]
[404616847,1770331839206,-500.0,0.00036955,2]
[404616848,1770331839215,-1000.0,0.00036955,2]
[404616849,1770331839224,-250.0,0.00036955,2]
[404616850,1770331839234,-500.0,0.00036955,2]
[404616851,1770331839243,-1000.0,0.00036955,2]
[404616852,1770331839252,-250.0,0.00036955,2]
[404616853,1770331839262,-500.0,0.00036955,2]
[404616854,1770331839271,-1000.0,0.00036955,2]
[404616855,1770331839280,-250.0,0.00036955,2]
[404616856,1770331839289,-250.0,0.00036955,2]
[404616857,1770331839299,-151.0,0.00036955,2]
[404616858,1770331839309,-1000.0,0.00036955,2]
[404616859,1770331839318,-250.0,0.00036955,2]
[404616860,1770331839327,-250.0,0.00036955,2]
[404616861,1770331839336,-174.45373637,0.00036955,2]
[404616862,1770331839346,-1000.0,0.00036955,2]
[404616863,1770331839355,-250.0,0.00036955,2]
[404616864,1770331839364,-250.0,0.00036955,2]
[404616865,1770331839375,-250.0,0.00036955,2]
[404616866,1770331839384,-250.0,0.00036955,2]
[404616867,1770331839394,-250.0,0.00036955,2]
[404616868,1770331839404,-250.0,0.00036955,2]
[404616869,1770331839413,-955.70108735,0.00036955,2]
[404616870,1770331839423,-250.0,0.00036955,2]
[404616871,1770331839432,-250.0,0.00036955,2]
[404616872,1770331839442,-500.0,0.00036955,2]
[404616873,1770331839453,-250.0,0.00036955,2]
[404616874,1770331839462,-250.0,0.00036955,2]
[404616875,1770331839472,-250.0,0.00036955,2]
[404616876,1770331839481,-250.0,0.00036955,2]
[404616878,1770331839490,-201.93286099,0.00036955,2]
[404616879,1770331839499,-250.0,0.00036955,2]
[404616880,1770331839508,-250.0,0.00036955,2]
[404616881,1770331839517,-500.0,0.00036955,2]
[404616882,1770331839527,-250.0,0.00036955,2]
[404616883,1770331839536,-250.0,0.00036955,2]
[404616884,1770331839545,-209.40437684,0.00036955,2]
[404616886,1770331839555,-500.0,0.00036955,2]
[404616888,1770331839563,-250.0,0.00036955,2]
[404616889,1770331839572,-250.0,0.00036955,2]
[404616890,1770331839581,-217.15233878,0.00036955,2]
[404616891,1770331839590,-500.0,0.00036955,2]
[404616892,1770331839599,-250.0,0.00036955,2]
[404616893,1770331839608,-250.0,0.00036955,2]
[404616894,1770331839617,-225.18697532,0.00036955,2]
[404616895,1770331839626,-250.0,0.00036955,2]
[404616896,1770331839635,-500.0,0.00036955,2]
[404616897,1770331839644,-250.0,0.00036955,2]
[404616898,1770331839653,-1000.0,0.00036955,2]
[404616899,1770331839661,-233.51889341,0.00036955,2]
[404616900,1770331839672,-250.0,0.00036955,2]
[404616901,1770331839682,-500.0,0.00036955,2]
[404616902,1770331839691,-250.0,0.00036955,2]
[404616903,1770331839702,-1000.0,0.00036955,2]
[404616904,1770331839712,-242.15909246,0.00036955,2]
[404616905,1770331839721,-250.0,0.00036955,2]
[404616906,1770331839730,-500.0,0.00036955,2]
[404616907,1770331839739,-250.0,0.00036955,2]
[404616908,1770331839748,-1000.0,0.00036955,2]
[404616910,1770331839758,-251.11897888,0.00036955,2]
[404616912,1770331839768,-500.0,0.00036955,2]
[404616914,1770331839776,-250.0,0.00036955,2]
[404616915,1770331839786,-1000.0,0.00036955,2]
[404616916,1770331839795,-260.4103811,0.00036955,2]
[404616918,1770331839807,-500.0,0.00036955,2]
[404616920,1770331839817,-250.0,0.00036955,2]
[404616922,1770331839826,-1000.0,0.00036955,2]
[404616923,1770331839836,-250.0,0.00036955,2]
[404616924,1770331839847,-500.0,0.00036955,2]
[404616925,1770331839856,-280.03725112,0.00036955,2]
[404616926,1770331839866,-290.39862941,0.00036955,2]
[404616927,1770331839877,-500.0,0.00036955,2]
[404616928,1770331839887,-301.1433787,0.00036955,2]
[404616929,1770331839897,-500.0,0.00036955,2]
[404616930,1770331839907,-500.0,0.00036955,2]
[404616931,1770331839916,-500.0,0.00036955,2]
[404616932,1770331839925,-250.0,0.00036955,2]
[404616933,1770331839935,-500.0,0.00036955,2]
[404616934,1770331839945,-451.97,0.00036962,60]
[404616935,1770331839956,-451.97,0.00037062,60]
[404616936,1770331839965,-451.97,0.00037162,60]
[404616937,1770331839976,-151.0,0.000372,17]
[404616938,1770331839986,-451.97,0.00037262,60]
[404616939,1770331839995,-168.0,0.00037265,7]
[404616940,1770331840004,-868.33,0.0003733,3]
[404616941,1770331840014,-451.97,0.00037362,60]
[404616942,1770331840024,-212.43770906,0.00037376,5]
[404616943,1770331840033,-451.97,0.00037462,60]
[404616944,1770331840043,-814.37239985,0.00037499,120]
[404616945,1770331840053,-3000.0,0.000375,60]
[404616946,1770331840063,-25356.5207168,0.00037552,3]
[404616947,1770331840072,-741.26793723,0.00037552,3]
[404616948,1770331840082,-451.97,0.00037562,60]
[404616949,1770331840091,-480.31,0.000376,7]
[404616950,1770331840101,-151.0,0.000376,12]